bitfinex/quotes_SOLUSD_20260214
["timestamp","ask_amount","ask_price","bid_price","bid_amount"]
[1771084034889,2.93270933,87.41,87.392,14.21452573]
[1771084035068,0.37283224,87.417,87.393,2.77183075]
[1771084035269,0.37283224,87.417,87.394,11.44243311]
[1771084035489,0.37283224,87.417,87.395,2.77183075]
[1771084036399,2.93270933,87.41,87.395,2.77183075]
[1771084036807,2.93270933,87.41,87.396,11.44217126]
[1771084037201,2.93270933,87.41,87.395,2.77183075]
[1771084037404,2.93270933,87.41,87.392,11.44267003]
[1771084037774,2.93270933,87.41,87.388,11.44321874]
[1771084038069,2.93270933,87.41,87.388,14.21504949]
[1771084039496,2.93270933,87.41,87.389,2.77183075]
[1771084042204,2.93270933,87.41,87.391,2.77183075]
[1771084042896,0.37514612,87.409,87.39,11.44295686]
[1771084043085,0.37514612,87.409,87.385,14.21538391]
[1771084043594,0.37514612,87.409,87.386,2.77183075]
[1771084044402,0.37514612,87.409,87.388,2.77183075]
[1771084045601,2.93270933,87.41,87.388,2.77183075]
[1771084045779,2.93270933,87.44,87.401,2.77183075]
[1771084046895,11.43510577,87.45,87.421,2.77183075]
[1771084047100,14.74373538,87.45,87.421,2.77183075]
[1771084047279,0.37592028,87.449,87.421,2.77183075]
[1771084049000,14.3678151,87.45,87.423,2.77183075]
[1771084049203,11.43510577,87.45,87.423,2.77183075]
[1771084049585,11.81159799,87.45,87.423,2.77183075]
[1771084049783,14.74430732,87.45,87.423,2.77183075]
[1771084050389,11.43431714,87.457,87.431,2.77183075]
[1771084050686,11.43431714,87.457,87.422,11.43876827]
[1771084050687,0.37672183,87.456,87.422,11.43876827]
[1771084050891,0.37672183,87.456,87.423,2.77183075]
[1771084051104,11.434452,87.455,87.425,2.77183075]
[1771084051603,11.80636055,87.455,87.425,2.77183075]
[1771084051806,0.37190855,87.454,87.425,2.77183075]
[1771084052708,14.73615083,87.46,87.425,2.77183075]
[1771084054002,0.36714894,87.459,87.427,2.77183075]
[1771084054511,0.36480521,87.449,87.413,2.77183075]
[1771084054804,2.93270933,87.43,87.404,2.77183075]
[1771084055215,0.36480521,87.435,87.404,2.77183075]
[1771084055707,2.93270933,87.44,87.411,2.77183075]
[1771084055911,0.36249262,87.446,87.411,2.77183075]
[1771084056110,55.84,87.45,87.421,2.77183075]
[1771084056487,0.36249262,87.449,87.421,2.77183075]
[1771084057411,11.4353673,87.448,87.422,2.77183075]
[1771084059610,0.35354388,87.457,87.424,2.77183075]
[1771084059791,2.93270933,87.46,87.424,2.77183075]
[1771084059991,2.93270933,87.46,87.431,2.77183075]
[1771084060192,4.61729252,87.484,87.423,11.43863742]
[1771084060193,0.35354388,87.47,87.441,2.77183075]
[1771084060401,11.43262184,87.469,87.441,2.77183075]
[1771084061496,11.43262184,87.469,87.442,2.91220454]
[1771084062800,11.77756884,87.469,87.442,2.91220454]
[1771084063611,0.344947,87.469,87.442,2.91220454]
[1771084063818,0.344947,87.469,87.444,2.91220454]
[1771084063997,0.34285826,87.475,87.444,2.91220454]
[1771084064998,0.34285826,87.475,87.446,2.91220454]
[1771084066522,55.88,87.483,87.451,2.91220454]
[1771084066821,0.33669121,87.481,87.451,2.91220454]
[1771084066994,0.33669121,87.481,87.453,2.91220454]
[1771084067627,11.43118427,87.48,87.453,2.91220454]
[1771084067797,0.33470494,87.469,87.441,14.34848729]
[1771084068414,0.33470494,87.469,87.442,2.91220454]
[1771084069721,0.33079418,87.459,87.421,2.91220454]
[1771084069903,0.33079418,87.449,87.421,14.35110366]
[1771084070703,2.93270933,87.44,87.421,2.91220454]
[1771084071522,0.32885198,87.443,87.421,2.91220454]
[1771084072098,11.76216821,87.449,87.423,2.91220454]
[1771084073296,11.43523893,87.449,87.423,2.91220454]
[1771084073496,2.93270933,87.46,87.423,2.91220454]
[1771084073697,11.43392904,87.459,87.423,2.91220454]
[1771084073916,11.43392904,87.459,87.425,2.91220454]
[1771084074698,0.32502731,87.462,87.425,2.91220454]
[1771084075420,2.93270933,87.46,87.425,2.91220454]
[1771084076098,11.43392904,87.459,87.427,2.91220454]
[1771084077215,11.43392904,87.459,87.428,11.43798325]
[1771084077422,2.93270933,87.46,87.429,2.91220454]
[1771084078114,11.43339031,87.464,87.429,2.91220454]
[1771084079929,11.43262184,87.469,87.43,11.4377216]
[1771084080250,11.4314702,87.478,87.441,2.91220454]
[1771084080805,0.31253406,87.486,87.451,2.91220454]
[1771084081412,11.43053094,87.485,87.451,2.91220454]
[1771084081727,0.30738321,87.484,87.451,2.91220454]
[1771084082126,2.93270933,87.48,87.453,2.89812299]
[1771084083511,3.236729,87.48,87.453,2.89812299]
[1771084083828,0.30401967,87.479,87.453,2.89812299]
[1771084084006,0.30401967,87.479,87.447,2.89812299]
[1771084084209,0.30401967,87.477,87.448,11.4353673]
[1771084084603,11.43144562,87.478,87.43,2.93270933]
[1771084084604,0.30238839,87.469,87.444,11.43585495]
[1771084084816,0.30238839,87.459,87.435,2.89812299]
[1771084086126,2.93122898,87.46,87.435,2.89812299]
[1771084086932,2.93122898,87.46,87.437,2.89812299]
[1771084090921,2.93122898,87.46,87.438,11.43667512]
[1771084091126,2.93122898,87.46,87.439,2.89812299]
[1771084091531,0.29145176,87.449,87.429,11.43782421]
[1771084091817,11.7253808,87.459,87.43,2.89812299]
[1771084092032,0.29145176,87.458,87.43,2.89812299]
[1771084093034,11.43392904,87.459,87.43,2.89812299]
[1771084094441,0.28849236,87.458,87.43,2.89812299]
[1771084096648,11.42935515,87.494,87.451,2.89812299]
[1771084096824,11.42935515,87.494,87.471,2.89812299]
[1771084097142,0.1,87.5,87.481,2.89812299]
[1771084098822,0.1,87.5,87.483,2.89812299]
[1771084099017,11.42613681,87.519,87.491,2.89812299]
[1771084099741,11.80613871,87.519,87.491,2.89812299]
[1771084099951,0.3800019,87.518,87.491,2.89812299]
[1771084100842,0.37868989,87.516,87.491,2.89812299]
[1771084101340,11.42635145,87.517,87.491,2.89812299]
[1771084102632,11.42635145,87.517,87.493,2.89812299]
[1771084104328,18.85522113,87.523,87.493,2.89812299]
[1771084104539,18.85522113,87.523,87.501,2.89812299]
[1771084104850,11.42563745,87.523,87.501,2.89812299]
[1771084105730,0.37233363,87.528,87.501,2.89812299]
[1771084107736,2.80572295,87.526,87.485,11.43045204]
[1771084107924,39.98766094,87.527,87.485,11.43045204]
[1771084107925,2.80572295,87.524,87.49,2.93122898]
[1771084108251,58.90572295,87.523,87.49,2.93122898]
[1771084108443,2.80572295,87.523,87.49,2.93122898]
[1771084109247,11.42504598,87.527,87.5,2.93122898]
[1771084109750,11.42504598,87.527,87.501,2.89812299]
[1771084114152,2.70818162,87.524,87.491,2.84940021]
[1771084115754,2.70818162,87.519,87.49,11.42984307]
[1771084115949,2.70818162,87.519,87.404,45.76399856]
[1771084115950,2.70818162,87.507,87.472,2.84940021]
[1771084116332,0.1,87.53,87.465,11.43306439]
[1771084116333,2.93122898,87.49,87.465,11.43306439]
[1771084116533,2.70818162,87.489,87.465,11.43306439]
[1771084117352,2.70818162,87.489,87.465,14.2824646]
[1771084117546,2.93122898,87.48,87.465,14.2824646]
[1771084118334,2.93122898,87.48,87.466,2.84940021]
[1771084119354,2.93122898,87.49,87.466,2.84940021]
[1771084120348,2.93122898,87.49,87.468,2.84940021]
[1771084123551,2.93122898,87.48,87.468,2.84940021]
[1771084129366,2.7829422,87.478,87.402,57.20639548]
[1771084129556,2.7829422,87.478,87.405,2.68616642]
[1771084129872,2.93122898,87.45,87.404,2.68616642]
[1771084130260,2.93122898,87.45,87.4,3.13122898]
[1771084130261,2.93122898,87.41,87.4,2.68616643]
[1771084130451,2.7829422,87.416,87.376,11.44479033]
[1771084130767,2.93122898,87.42,87.38,2.93122898]
[1771084131155,2.93122898,87.42,87.381,40.05447408]
[1771084132150,2.7829422,87.443,87.39,2.93122898]
[1771084132357,2.93122898,87.45,87.411,2.68616642]
[1771084133669,2.93122898,87.45,87.413,2.68616642]
[1771084134578,2.93122898,87.45,87.415,2.68616642]
[1771084135679,2.93122898,87.45,87.42,2.93122898]
[1771084135974,5.71417118,87.45,87.421,2.68616642]
[1771084136755,2.93122898,87.45,87.421,2.68616642]
[1771084136962,2.7829422,87.449,87.421,2.68616642]
[1771084137872,2.7829422,87.449,87.422,11.43876827]
[1771084138078,2.7829422,87.447,87.422,11.43876827]
[1771084139480,2.7829422,87.447,87.423,2.68616642]
[1771084139977,2.7829422,87.447,87.424,14.124673]
[1771084140177,2.7829422,87.447,87.425,2.68616642]
[1771084141375,2.93122898,87.46,87.425,2.68616642]
[1771084142974,2.85029613,87.458,87.427,2.88908166]
[1771084144478,2.85029613,87.449,87.426,11.43824491]
[1771084144662,2.85029613,87.459,87.427,2.88908166]
[1771084145184,2.93122898,87.46,87.424,28.59613621]
[1771084145185,2.85029613,87.457,87.429,2.88908166]
[1771084145563,2.93122898,87.46,87.429,2.88908166]
[1771084145965,5.78152511,87.46,87.429,2.88908166]
[1771084146165,2.85029613,87.459,87.429,2.88908166]
[1771084148187,2.85029613,87.467,87.431,2.88908166]
[1771084148487,2.85029613,87.467,87.441,2.88908166]
[1771084149368,2.93131145,87.46,87.431,2.88908166]
[1771084149566,2.85029613,87.449,87.43,11.4377216]
[1771084150563,2.85029613,87.449,87.421,2.88908166]
[1771084151366,2.85029613,87.459,87.421,2.88908166]
[1771084151683,2.85029613,87.459,87.43,2.93131145]
[1771084151871,2.85029613,87.459,87.431,2.88908166]
[1771084152670,2.85029613,87.459,87.433,2.88908166]
[1771084153187,2.85029613,87.459,87.432,11.43745996]
[1771084153981,2.85029613,87.459,87.432,14.32654162]
[1771084154386,2.85029613,87.459,87.433,2.88908166]
[1771084154619,2.85029613,87.466,87.434,11.43719834]
[1771084154885,2.85029613,87.466,87.435,2.88908166]
[1771084156789,2.85029613,87.466,87.437,2.88908166]
[1771084158087,2.93131145,87.47,87.439,2.88908166]
[1771084158299,2.85029613,87.473,87.441,2.88908166]
[1771084158487,2.85029613,87.479,87.441,2.88908166]
[1771084158695,2.93131145,87.49,87.438,40.02836294]
[1771084158696,2.85029613,87.491,87.461,2.88908166]
[1771084160789,2.93131145,87.48,87.455,11.434452]
[1771084160996,2.85029613,87.479,87.455,11.434452]
[1771084161778,2.85029613,87.479,87.456,2.88908166]
[1771084161983,2.85029613,87.489,87.456,2.88908166]
[1771084162190,2.85029613,87.479,87.455,40.020582]
[1771084163097,2.85029613,87.479,87.455,28.58613]
[1771084163595,2.85029613,87.479,87.451,11.43497501]
[1771084163777,2.85029613,87.477,87.451,11.43497501]
[1771084165596,5.78160758,87.49,87.451,2.88908166]
[1771084165893,2.85029613,87.497,87.461,2.88908166]
[1771084166275,2.85029613,87.497,87.471,2.88908166]
[1771084168695,2.85029613,87.496,87.461,11.43366757]
[1771084168887,2.85029613,87.496,87.462,2.88908166]
[1771084169286,2.85029613,87.495,87.462,2.88908166]
[1771084170093,2.85029613,87.495,87.461,40.01783651]
[1771084170327,2.85029613,87.479,87.461,11.43366757]
[1771084170896,2.85029613,87.479,87.45,42.91178098]
[1771084171204,2.85029613,87.479,87.451,2.88908166]
[1771084173599,2.85029613,87.479,87.453,2.82460726]
[1771084175287,2.85029613,87.479,87.455,2.82460726]
[1771084175795,2.85029613,87.479,87.454,40.02103963]
[1771084175796,2.84724671,87.495,87.461,2.82460726]
[1771084177998,2.84724671,87.507,87.471,2.82460726]
[1771084179306,2.93131145,87.52,87.481,2.82460726]
[1771084179505,2.84724671,87.522,87.481,2.82460726]
[1771084181693,2.84724671,87.522,87.491,2.73646743]
[1771084182896,2.96650595,87.529,87.491,2.73646743]
[1771084183111,0.1,87.53,87.501,2.73646743]
[1771084183803,3.06650595,87.53,87.503,2.73646743]
[1771084185024,2.96650595,87.529,87.502,11.42831021]
[1771084187312,2.96650595,87.529,87.499,2.73646743]
[1771084188308,2.96650595,87.527,87.499,2.73646743]
[1771084189738,2.96650595,87.527,87.5,11.42857142]
[1771084192433,2.96650595,87.527,87.5,2.73646743]
[1771084195021,2.96650595,87.527,87.501,11.42844081]
[1771084198547,2.96650595,87.526,87.501,11.42844081]
[1771084201939,2.96116579,87.546,87.511,2.92912244]
[1771084203629,2.96116579,87.546,87.513,2.92912244]
[1771084204622,2.96116579,87.539,87.513,2.92912244]
[1771084204820,2.96116579,87.539,87.508,11.42752644]
[1771084207836,2.96116579,87.537,87.508,11.42752644]
[1771084208239,2.96116579,87.529,87.508,11.42752644]
[1771084208743,2.96116579,87.529,87.502,39.99887627]
[1771084209047,2.92635226,87.52,87.502,11.42831021]
[1771084209251,2.96116579,87.519,87.502,11.42831021]
[1771084211849,2.96116579,87.519,87.502,14.35743265]
[1771084212047,14.38595071,87.529,87.503,2.92912244]
[1771084212350,2.96116579,87.528,87.503,2.92912244]
[1771084213951,2.96116579,87.528,87.505,2.92912244]
[1771084214523,11.42504598,87.527,87.505,2.92912244]
[1771084214741,14.38621177,87.527,87.505,2.92912244]
[1771084214944,2.96116579,87.526,87.505,2.92912244]
[1771084215854,2.96116579,87.526,87.5,2.92912244]
[1771084217354,2.92635226,87.55,87.491,11.42974705]
[1771084217355,2.96116579,87.553,87.521,2.92912244]
[1771084217742,2.96116579,87.553,87.523,2.92912244]
[1771084219540,2.96116579,87.539,87.517,11.4262785]
[1771084219759,2.96116579,87.529,87.512,50.86]
[1771084220057,2.96116579,87.529,87.51,11.42725044]
[1771084224039,2.96116579,87.539,87.511,2.92912244]
[1771084224445,2.96116579,87.538,87.511,2.92912244]
[1771084227165,2.96116579,87.538,87.513,2.92912244]
[1771084228960,2.96116579,87.538,87.514,11.42674314]
[1771084230866,2.96116579,87.538,87.514,14.35586558]
[1771084234958,2.96116579,87.538,87.515,2.82953814]
[1771084235367,2.96116579,87.538,87.505,28.56959203]
[1771084235555,2.96116579,87.538,87.506,2.82953814]
[1771084236870,2.96116579,87.538,87.507,11.42765721]
[1771084237072,2.96116579,87.538,87.508,2.82953814]
[1771084238952,2.96116579,87.538,87.509,11.42739603]
[1771084239273,2.96116579,87.538,87.51,2.82953814]
[1771084240555,11.42374081,87.537,87.501,11.42844081]
[1771084240763,2.77805305,87.519,87.501,11.42844081]
[1771084243781,2.77805305,87.519,87.487,40.00594374]
[1771084244082,2.77805305,87.519,87.488,2.88126926]
[1771084244254,2.92635226,87.5,87.487,11.43026964]
[1771084244457,2.92635226,87.52,87.488,2.88126926]
[1771084245178,2.92635226,87.53,87.488,2.88126926]
[1771084245380,2.92635226,87.53,87.49,2.88126926]
[1771084245759,2.92635226,87.52,87.49,2.88126926]
[1771084246368,2.77805305,87.519,87.492,2.88126926]
[1771084247654,2.77805305,87.519,87.494,2.88126926]
[1771084248963,2.77805305,87.519,87.493,11.42948578]
[1771084249179,2.77805305,87.517,87.493,11.42948578]
[1771084249380,2.77805305,87.509,87.493,11.42948578]
[1771084249682,2.77805305,87.499,87.471,14.31362969]
[1771084249860,2.77805305,87.489,87.471,14.31362969]
[1771084250055,2.77805305,87.489,87.472,2.88126926]
[1771084250866,2.92635226,87.5,87.472,2.88126926]
[1771084251069,2.77805305,87.505,87.472,2.88126926]
[1771084251678,2.77805305,87.505,87.474,2.88126926]
[1771084251987,2.77805305,87.499,87.473,40.01234665]
[1771084252286,165.0,87.535,87.481,2.88126926]
[1771084252287,2.77805305,87.517,87.481,2.88126926]
[1771084252465,2.77805305,87.517,87.483,2.88126926]
[1771084254266,54.88,87.543,87.483,2.88126926]
[1771084254267,2.92635226,87.53,87.491,2.88126926]
[1771084254458,2.92635226,87.54,87.501,2.88126926]
[1771084256284,2.77805305,87.519,87.502,11.42831021]
[1771084256966,2.92635226,87.53,87.503,2.88126926]
[1771084257167,2.77805305,87.543,87.504,2.88126926]
[1771084257383,2.92635226,87.54,87.504,2.88126926]
[1771084257695,2.77805305,87.543,87.504,2.88126926]
[1771084259385,2.77805305,87.555,87.521,2.88126926]
[1771084260367,2.77805305,87.549,87.521,2.88126926]
[1771084261567,2.77805305,87.549,87.522,11.42569868]
[1771084262165,2.77805305,87.549,87.522,14.20394462]
[1771084262592,2.77805305,87.549,87.523,2.77824594]
[1771084262985,2.7653299,87.539,87.513,11.42675758]
[1771084263771,11.42361031,87.538,87.513,11.42675758]
[1771084263978,2.7653299,87.537,87.513,11.42675758]
[1771084264387,2.7653299,87.537,87.226,82.53058618]
[1771084264388,2.7653299,87.519,87.489,28.57476814]
[1771084264593,2.7653299,87.499,87.475,11.43183766]
[1771084264796,2.92635226,87.49,87.475,11.43183766]
[1771084265092,2.7653299,87.489,87.471,11.43233452]
[1771084265682,2.7653299,87.479,87.455,51.34]
[1771084265894,2.7653299,87.479,87.459,11.4338506]
[1771084266195,31.49783645,87.5,87.453,11.43466676]
[1771084266196,2.92635226,87.47,87.453,11.43466676]
[1771084267778,2.92635226,87.46,87.443,2.77824594]
[1771084267997,2.92635226,87.46,87.445,16.84949784]
[1771084268298,2.7653299,87.469,87.445,16.84949784]
[1771084268696,2.7653299,87.469,87.446,2.77824594]
[1771084270202,2.7653299,87.469,87.447,2.77824594]
[1771084270387,2.93071728,87.47,87.447,2.77824594]
[1771084270581,5.69604718,87.47,87.447,2.77824594]
[1771084274004,5.69604718,87.47,87.449,2.77824594]
[1771084274178,14.19795174,87.469,87.449,2.77824594]
[1771084275793,2.7653299,87.459,87.445,10.59647072]
[1771084275987,2.93071728,87.45,87.434,11.43718591]
[1771084276192,2.93071728,87.45,87.429,11.43774716]
[1771084278215,2.93071728,87.44,87.424,11.43843558]
[1771084278715,2.93071728,87.44,87.424,14.47738393]
[1771084279501,2.93071728,87.43,87.42,0.2]
[1771084279982,2.93071728,87.44,87.42,0.2]
[1771084280289,2.93071728,87.44,87.42,3.23894835]
[1771084280986,2.93071728,87.46,87.422,3.03894835]
[1771084281697,2.93071728,87.46,87.424,3.03894835]
[1771084282015,11.43392904,87.459,87.424,3.03894835]
[1771084282217,2.93071728,87.46,87.424,3.03894835]
[1771084282514,2.93071728,87.47,87.424,3.03894835]
[1771084283390,2.93071728,87.46,87.424,3.03894835]
[1771084283709,2.93071728,87.45,87.426,3.03894835]
[1771084285910,2.93071728,87.45,87.428,3.03894835]
[1771084286909,2.93071728,87.45,87.429,11.43785242]
[1771084287102,2.93071728,87.45,87.43,3.03894835]
[1771084287608,0.05760607,87.439,87.42,0.2]
[1771084287811,2.93071728,87.43,87.42,0.2]
[1771084289311,0.05760607,87.439,87.42,0.2]
[1771084290519,2.93071728,87.43,87.42,0.2]
[1771084292012,2.93071728,87.44,87.421,3.03894835]
[1771084292199,2.93071728,87.44,87.42,0.2]
[1771084292511,2.93071728,87.43,87.42,0.2]
[1771084295109,0.0548971,87.446,87.422,3.03894835]
[1771084295425,2.93071728,87.44,87.422,3.03894835]
[1771084298509,0.03848507,87.439,87.42,0.2]
[1771084299599,11.43654433,87.439,87.42,0.2]
[1771084303207,11.43654433,87.439,87.42,3.23894835]
[1771084303816,2.96658871,87.44,87.42,3.23894835]
[1771084304120,2.93071728,87.44,87.42,3.23894835]
[1771084305122,0.02084447,87.439,87.42,3.23894835]
[1771084305324,0.02084447,87.439,87.42,0.2]
[1771084306205,11.43654433,87.439,87.42,0.2]
[1771084308208,2.93071728,87.44,87.42,0.2]
[1771084308625,2.93071728,87.44,87.42,3.23894835]
[1771084309128,2.93071728,87.43,87.367,3.03894835]
[1771084309326,2.93071728,87.45,87.35,0.2]
[1771084309327,4.61729252,87.397,87.35,0.2]
[1771084309503,2.93071728,87.36,87.331,11.45068761]
[1771084309818,2.93071728,87.37,87.332,3.03894835]
[1771084310026,5.96934775,87.372,87.341,3.03894835]
[1771084310205,5.96934775,87.372,87.343,3.03894835]
[1771084310399,2.93071728,87.38,87.344,3.03894835]
[1771084311125,2.93071728,87.37,87.344,3.03894835]
[1771084312729,57.69351059,87.387,87.351,3.03894835]
[1771084313020,57.69351059,87.387,87.361,3.03894835]
[1771084313399,57.69351059,87.387,87.371,3.03894835]
[1771084314129,57.69351059,87.387,87.373,3.03894835]
[1771084315227,54.65445018,87.387,87.375,2.80046575]
[1771084315832,54.18,87.417,87.376,2.80046575]
[1771084315833,46.15480847,87.409,87.376,2.80046575]
[1771084316029,46.15480847,87.409,87.377,2.80046575]
[1771084316821,46.15480847,87.409,87.381,2.80046575]
[1771084317526,46.15480847,87.409,87.382,11.44400448]
[1771084317709,46.15480847,87.409,87.383,2.80046575]
[1771084318935,46.15480847,87.409,87.391,2.80046575]
[1771084319233,48.92813894,87.409,87.384,11.44374256]
[1771084319442,2.77333047,87.408,87.384,11.44374256]
[1771084319935,2.77333047,87.399,87.378,11.44440799]
[1771084320112,2.77333047,87.399,87.373,11.44512275]
[1771084320632,2.77333047,87.399,87.368,11.44582402]
[1771084320834,2.77333047,87.389,87.368,11.44582402]
[1771084321138,2.77333047,87.389,87.35,2.93071728]
[1771084321139,2.77333047,87.379,87.342,2.81899341]
[1771084321712,2.93071728,87.38,87.342,2.81899341]
[1771084321926,2.93071728,87.38,87.341,11.44937658]
[1771084321927,2.93071728,87.4,87.361,2.81899341]
[1771084323228,11.44177851,87.399,87.363,2.81899341]
[1771084323423,2.83536727,87.389,87.363,2.81899341]
[1771084324326,2.93071728,87.38,87.362,11.44662439]
[1771084324525,5.76608455,87.38,87.362,11.44662439]
[1771084324708,2.83536727,87.379,87.362,11.44662439]
[1771084325229,2.83536727,87.379,87.356,2.81899341]
[1771084325451,2.83536727,87.389,87.358,2.81899341]
[1771084325734,2.83536727,87.395,87.358,2.81899341]
[1771084326121,2.83536727,87.395,87.361,2.81899341]
[1771084328129,2.83536727,87.395,87.363,2.81899341]
[1771084328712,2.83536727,87.399,87.363,2.81899341]
[1771084328913,54.34,87.405,87.363,2.81899341]
[1771084329318,14.27633363,87.406,87.363,2.81899341]
[1771084329922,2.83536727,87.405,87.363,2.81899341]
[1771084330241,11.44112397,87.404,87.365,2.81899341]
[1771084330537,41.63404632,87.409,87.391,2.81899341]
[1771084331929,11.43754586,87.432,87.401,2.81899341]
[1771084332340,2.83536727,87.431,87.403,2.81899341]
[1771084332644,2.83536727,87.431,87.391,28.60690966]
[1771084332645,2.83536727,87.429,87.395,2.81899341]
[1771084333922,2.83536727,87.429,87.396,11.44217126]
[1771084334137,2.83536727,87.429,87.396,14.26116467]
[1771084334337,2.83536727,87.427,87.397,2.81899341]
[1771084334533,2.83536727,87.427,87.401,2.81899341]
[1771084334730,25.08599236,87.431,87.401,2.81899341]
[1771084335128,11.4377216,87.43,87.401,2.81899341]
[1771084335334,2.83536727,87.43,87.401,2.81899341]
[1771084335639,25.08599236,87.431,87.421,2.81899341]
[1771084336221,25.08599236,87.431,87.411,14.25920116]
[1771084336532,25.08599236,87.431,87.412,2.81899341]
[1771084337719,25.08599236,87.431,87.413,11.439946]
[1771084337921,25.08599236,87.431,87.414,2.81899341]
[1771084341739,25.08599236,87.431,87.415,11.43968426]
[1771084342529,25.08599236,87.431,87.409,11.44037836]
[1771084342739,27.92135963,87.431,87.409,11.44037836]
[1771084343445,27.92135963,87.431,87.409,14.25937177]
[1771084344046,25.08599236,87.431,87.41,2.81899341]
[1771084345528,25.08599236,87.431,87.412,2.81899341]
[1771084346751,25.08599236,87.431,87.414,2.81899341]
[1771084349150,25.08599236,87.431,87.415,14.25867767]
[1771084353438,25.08599236,87.431,87.415,11.43968426]
[1771084353643,2.89014378,87.43,87.405,2.8575206]
[1771084355030,2.89014378,87.43,87.407,2.8575206]
[1771084357650,2.89014378,87.419,87.389,11.44305773]
[1771084357850,2.89014378,87.409,87.389,11.44305773]
[1771084359651,2.93310374,87.4,87.372,52.04]
[1771084360337,11.44007687,87.412,87.373,3.03618045]
[1771084360861,11.43931145,87.418,87.381,3.03618045]
[1771084361157,2.93310374,87.43,87.391,3.03618045]
[1771084361368,2.93310374,87.41,87.373,40.05814152]
[1771084361655,11.44046951,87.409,87.374,3.03618045]
[1771084362350,2.93310374,87.4,87.374,3.03618045]
[1771084363542,2.93310374,87.39,87.374,3.03618045]
[1771084364561,2.93310374,87.39,87.366,3.03618045]
[1771084365742,11.4430878,87.389,87.366,3.03618045]
[1771084368455,2.93310374,87.38,87.366,3.03618045]
[1771084370269,57.18721602,87.433,87.368,3.03618045]
[1771084370480,2.93310374,87.39,87.354,3.03618045]
[1771084373568,11.4430878,87.389,87.355,11.44754164]
[1771084373882,11.4430878,87.389,87.356,3.03618045]
[1771084375181,11.4430878,87.389,87.357,11.44727955]
[1771084375488,11.4430878,87.389,87.358,3.03618045]
[1771084376573,2.93310374,87.38,87.36,3.03618045]
[1771084376781,0.02345826,87.388,87.36,3.03618045]
[1771084377681,0.02345826,87.388,87.362,3.03618045]
[1771084378674,0.02345826,87.388,87.364,3.03618045]
[1771084380873,11.4430878,87.389,87.366,3.03618045]
[1771084381669,2.93310374,87.39,87.366,3.03618045]
[1771084382180,11.4430878,87.389,87.366,3.03618045]
[1771084382763,11.47542299,87.389,87.366,3.03618045]
[1771084382964,0.03233519,87.388,87.366,3.03618045]
[1771084384068,11.44248167,87.394,87.366,3.03618045]
[1771084385571,0.03439026,87.398,87.368,3.03618045]
[1771084385963,2.93310374,87.39,87.368,3.03618045]
[1771084387482,0.03646803,87.404,87.37,3.03618045]
[1771084387793,2.93310374,87.4,87.37,3.03618045]
[1771084388490,2.93310374,87.4,87.371,11.44544528]
[1771084388665,11.44177851,87.399,87.372,3.03618045]
[1771084389581,11.44046951,87.409,87.372,3.03618045]
[1771084389882,11.47872047,87.419,87.372,3.03618045]
[1771084390286,11.43919549,87.419,87.372,3.03618045]
[1771084390488,0.03952498,87.418,87.374,3.03618045]
[1771084390868,2.93310374,87.41,87.375,40.0572246]
[1771084391069,2.93310374,87.41,87.376,3.03618045]
[1771084392974,2.93423537,87.41,87.379,3.03618045]
[1771084394983,2.93423537,87.41,87.38,40.05493247]
[1771084395190,2.93423537,87.41,87.381,3.03618045]
[1771084395515,0.04418432,87.409,87.378,52.8]
[1771084395675,0.04508847,87.399,87.373,3.03618045]
[1771084397277,11.48686698,87.399,87.373,3.03618045]
[1771084399392,11.44177851,87.399,87.375,3.03618045]
[1771084399983,0.04855784,87.398,87.375,3.03618045]
[1771084403903,11.44177851,87.399,87.375,3.03618045]
[1771084405407,11.49455086,87.399,87.375,3.03618045]
[1771084406602,0.05435499,87.398,87.375,3.03618045]
[1771084408311,0.05435499,87.398,87.365,14.48241177]
[1771084408497,0.05435499,87.398,87.366,3.03618045]
[1771084408900,2.93423537,87.39,87.366,3.03618045]
[1771084409384,0.05600849,87.379,87.35,3.03618045]
[1771084409588,2.93423537,87.37,87.353,3.03618045]
[1771084411001,0.05755723,87.359,87.34,11.44946146]
[1771084411510,0.05755723,87.359,87.341,3.06495739]
[1771084411718,2.93423537,87.36,87.341,3.06495739]
[1771084413098,2.93423537,87.35,87.33,0.2]
[1771084413312,2.93423537,87.33,87.32,0.2]
[1771084413613,2.93423537,87.34,87.32,3.26495739]
[1771084413810,2.93423537,87.34,87.322,3.06495739]
[1771084414014,2.93423537,87.33,87.31,0.2]
[1771084414400,2.93423537,87.34,87.312,3.06495739]
[1771084414800,14.38381645,87.34,87.312,3.06495739]
[1771084415016,14.38381645,87.34,87.314,3.06495739]
[1771084416219,2.93423537,87.34,87.316,3.06495739]
[1771084418217,2.93423537,87.34,87.317,11.45252356]
[1771084418420,2.93423537,87.34,87.318,3.06495739]
[1771084419127,2.93423537,87.33,87.311,3.06495739]
[1771084420506,2.93423537,87.33,87.313,3.06495739]
[1771084420713,14.38379779,87.34,87.313,3.06495739]
[1771084421832,2.93423537,87.32,87.302,3.06495739]
[1771084422122,2.93423537,87.33,87.302,3.06495739]
[1771084422707,14.38514548,87.33,87.302,3.06495739]
[1771084422909,2.93423537,87.34,87.304,3.06495739]